[Event "Elitserien Allsvenskan 2017-18"]
[Site "Lund"]
[Date "2017.10.22"]
[Round "3"]
[White "Engqvist, Thomas"]
[Black "Kassani, Sam"]
[Result "1-0"]
[ECO "B12"]
[WhiteElo "2352"]
[BlackElo "2203"]
[Annotator "NA"]
[PlyCount "107"]
[EventDate "2017.??.??"]
[EventCountry "SWE"]
[SourceTitle "playchess.com"]
[Source "ChessBase"]
[SourceQuality "1"]
[TimeControl "40/5400+30:1800+30"]

1. e4 {[%emt 0:00:00]} c6 {[%emt 0:01:10]} 2. d4 {[%emt 0:01:26]} d5 {[%emt 0:00:20]} 3. f3 {[%emt 0:00:36]} dxe4 {[%emt 0:03:24]} 4. fxe4 {[%emt 0:00:06]} e5 {[%emt 0:00:02]} 5. Nf3 {[%emt 0:00:08]} Bg4 {[%emt 0:00:05]} 6. Bc4 {[%emt 0:01:26]} Nd7 {[%emt 0:00:39]} 7. O-O {[%emt 0:01:39] B12: Caro-Kann: Advance Variation} Ngf6 {[%emt 0:03:02]} 8. c3 {[%emt 0:11:30] LiveBook: 43 Games} Qb6 {[%emt 0:22:24]} (8... Qc7 9. Qb3 O-O-O 10. Nbd2 Bd6 11. h3 Bh5 12. Ng5 Rhf8 13. Nxf7 Bxf7 14. Bxf7 exd4 15. cxd4 {½-½ (38) Gagunashvili,M (2588)-Paichadze,L (2554) Tbilisi 2017}) 9. Nbd2 {[%emt 0:05:18]} Bd6 $146 {[%emt 0:02:04]} ({Predecessor:} 9... exd4 10. cxd4 Ne5 11. Qb3 Nxc4 12. Nxc4 Qxb3 13. axb3 a6 14. e5 Nd5 15. Ng5 Be6 16. Ne4 {½-½ (16) Cardona Costa,J (2072)-Moraes,F (2198) ICCF email 2012}) 10. Bxf7+ {[%emt 0:14:51]} Kxf7 {[%emt 0:01:33]} 11. Nc4 {[%emt 0:00:11]} Qc7 {[%emt 0:00:54]} 12. dxe5 {[%emt 0:00:12]} Bxe5 {[%emt 0:14:12]} ({Nicht} 12... Bc5+ $2 13. Kh1 $18) 13. Nfxe5+ {[%emt 0:01:18]} Nxe5 {[%emt 0:00:20]} 14. Nxe5+ {[%emt 0:00:26]} Qxe5 {[%emt 0:00:05]} 15. Qxg4 {[%emt 0:00:28]} Rhe8 {[%emt 0:00:30]} 16. Bg5 {[%emt 0:02:07]} Qxe4 {[%emt 0:01:07]} 17. Qg3 $14 {[%emt 0:00:37]} Qg6 {[%emt 0:08:58]} 18. Bxf6 {[%emt 0:04:37]} gxf6 {[%emt 0:00:56]} 19. Qh4 {[%emt 0:00:09]} Kg7 {[%emt 0:15:07]} 20. Rf4 {[%emt 0:01:34]} Re5 {[%emt 0:01:21]} 21. Raf1 {[%emt 0:00:21]} Rf8 {[%emt 0:01:23]} 22. h3 {[%emt 0:10:03]} a6 {[%emt 0:01:57]} 23. Kh2 {[%emt 0:11:37]} Rg5 {[%emt 0:01:54]} 24. Qf2 {[%emt 0:00:51]} Rf7 {[%emt 0:00:23]} 25. h4 {[%emt 0:03:48]} Rg4 {[%emt 0:01:49]} 26. Rf5 {[%emt 0:00:22]} h5 {[%emt 0:00:21]} 27. g3 {[%emt 0:02:10]} Re4 {[%emt 0:06:05]} 28. Qf3 {[%emt 0:05:23]} Rg4 {[%emt 0:01:53]} 29. Kh3 {[%emt 0:00:26]} Kh6 {[%emt 0:01:05]} 30. Qe3+ {[%emt 0:13:32]} Kh7 {[%emt 0:00:43]} 31. Kh2 {[%emt 0:01:17]} Rg7 {[%emt 0:01:37]} 32. Rxf6 {[%emt 0:02:31]} Rxg3 {[%emt 0:01:08]} 33. Rxg6 {[%emt 0:00:53]} Rxe3 {[%emt 0:00:05]} 34. Rxg7+ {[%emt 0:00:26]} Kxg7 {[%emt 0:00:06]} 35. Rf2 {[%emt 0:00:28]} Re4 {[%emt 0:05:08]} 36. Kg3 {[%emt 0:00:50]} Rg4+ {[%emt 0:01:18]} 37. Kh3 {[%emt 0:00:05]} Kg6 {[%emt 0:02:02]} 38. Rd2 {[%emt 0:00:19]} Rf4 {[%emt 0:00:12]} 39. Rd7 {[%emt 0:00:45]} Rf7 {[%emt 0:00:04]} 40. Rxf7 {[%emt 0:00:36]} Kxf7 {[%emt 0:30:04]} 41. Kg3 {[%emt 0:30:05]} Ke6 {[%emt 0:00:00]} 42. Kf4 {[%emt 0:00:00]} Kf6 {[%emt 0:00:00]} 43. b4 {[%emt 0:00:00]} b5 {[%emt 0:00:00]} 44. a3 {[%emt 0:00:00]} Kf7 {[%emt 0:00:00]} 45. Kg5 {[%emt 0:00:00]} Ke6 {[%emt 0:00:00]} 46. Kxh5 {[%emt 0:00:00]} Kf5 {[%emt 0:00:00]} 47. Kh6 {[%emt 0:00:00]} Ke4 {[%emt 0:00:00]} 48. h5 {[%emt 0:00:00]} Kd3 {[%emt 0:00:00]} 49. Kg5 {[%emt 0:00:00]} Kxc3 {[%emt 0:00:00]} 50. h6 {[%emt 0:00:00]} Kb3 {[%emt 0:00:00]} 51. h7 {[%emt 0:00:00]} Kxa3 {[%emt 0:00:00]} 52. h8=Q {[%emt 0:00:00]} Kxb4 {[%emt 0:00:00]} 53. Qd4+ {[%emt 0:00:00]} Ka3 {[%emt 0:00:00]} 54. Qb6 {[%emt 0:00:00]} 1-0

[Event "Elitserien Allsvenskan 2017-18"]
[Site "Lund"]
[Date "2017.10.22"]
[Round "3"]
[White "Dragicevic, Drazen"]
[Black "Larsson, Anders"]
[Result "0-1"]
[ECO "A06"]
[WhiteElo "2349"]
[BlackElo "2258"]
[Annotator "NA"]
[PlyCount "68"]
[EventDate "2017.??.??"]
[EventCountry "SWE"]
[SourceTitle "playchess.com"]
[Source "ChessBase"]
[SourceQuality "1"]
[TimeControl "40/5400+30:1800+30"]

1. Nf3 {[%emt 0:04:19]} d5 {[%emt 0:00:33]} 2. g3 {[%emt 0:00:47]} Nf6 {[%emt 0:00:48]} 3. Bg2 {[%emt 0:00:40]} c6 {[%emt 0:00:52]} 4. O-O {[%emt 0:05:05]} Bf5 {[%emt 0:00:47]} 5. d4 {[%emt 0:03:18]} e6 {[%emt 0:05:14]} 6. c4 {[%emt 0:09:34]} Be7 {[%emt 0:01:47]} 7. Nc3 {[%emt 0:00:10]} h6 {[%emt 0:01:19]} 8. Ne5 {[%emt 0:05:19]} Nbd7 {[%emt 0:03:54]} 9. Qb3 {[%emt 0:01:17]} Qb6 {[%emt 0:05:09]} 10. Nxd7 {[%emt 0:03:58]} Nxd7 {[%emt 0:00:30]} 11. e4 {[%emt 0:01:09]} dxe4 {[%emt 0:03:35]} 12. Nxe4 {[%emt 0:00:09]} O-O {[%emt 0:03:42]} 13. Be3 {[%emt 0:04:30]} Bxe4 {[%emt 0:18:52]} 14. Bxe4 {[%emt 0:03:39]} Qxb3 $11 {[%emt 0:00:06]} 15. axb3 {[%emt 0:00:10]} Nf6 {[%emt 0:00:12]} 16. Bf3 {[%emt 0:00:53]} Rfd8 {[%emt 0:04:19]} 17. Rfd1 {[%emt 0:13:01]} a6 {[%emt 0:01:54]} 18. Kf1 {[%emt 0:17:22]} Rd7 {[%emt 0:04:09]} 19. Ke2 {[%emt 0:15:52]} Rad8 {[%emt 0:01:03]} 20. Kd3 {[%emt 0:01:05]} Ne8 {[%emt 0:10:22]} 21. Kc3 {[%emt 0:01:12]} Bf6 {[%emt 0:01:12]} 22. b4 {[%emt 0:00:41]} Nd6 {[%emt 0:03:18]} 23. Rd2 {[%emt 0:04:10]} Nf5 {[%emt 0:10:26]} 24. Rad1 {[%emt 0:00:05]} a5 {[%emt 0:03:41]} 25. c5 {[%emt 0:02:30]} e5 {[%emt 0:02:43]} 26. dxe5 {[%emt 0:00:55]} Bxe5+ {[%emt 0:00:19]} 27. Kb3 {[%emt 0:00:39]} Rxd2 {[%emt 0:00:29]} 28. Rxd2 {[%emt 0:00:47]} Rxd2 {[%emt 0:00:08]} 29. Bxd2 {[%emt 0:00:36]} Nd4+ {[%emt 0:00:07]} 30. Kc4 {[%emt 0:00:32]} Nxf3 {[%emt 0:00:06]} 31. Bc1 {[%emt 0:00:28]} axb4 {[%emt 0:00:29]} 32. h4 {[%emt 0:00:28]} f5 {[%emt 0:01:58]} 33. Kxb4 {[%emt 0:00:12]} Kf7 {[%emt 0:00:35]} 34. Ka5 {[%emt 0:00:22]} Bc7+ {[%emt 0:00:10]} 0-1

[Event "Elitserien Allsvenskan 2017-18"]
[Site "Lund"]
[Date "2017.10.22"]
[Round "3"]
[White "Lissang, Christopher"]
[Black "Hedman, Erik"]
[Result "1/2-1/2"]
[ECO "A30"]
[WhiteElo "2344"]
[BlackElo "2366"]
[Annotator "NA"]
[PlyCount "36"]
[EventDate "2017.??.??"]
[EventCountry "SWE"]
[SourceTitle "playchess.com"]
[Source "ChessBase"]
[SourceQuality "1"]
[TimeControl "40/5400+30:1800+30"]

1. c4 {[%emt 0:04:59]} c5 {[%emt 0:00:21]} 2. Nf3 {[%emt 0:00:26]} Nc6 {[%emt 0:01:53]} 3. e3 {[%emt 0:03:27]} Nf6 {[%emt 0:00:35]} 4. Nc3 {[%emt 0:02:00]} g6 {[%emt 0:00:31]} 5. d4 {[%emt 0:01:15]} cxd4 {[%emt 0:00:02]} 6. exd4 {[%emt 0:00:30]} d5 {[%emt 0:00:03]} 7. cxd5 {[%emt 0:05:57]} Nxd5 {[%emt 0:00:04]} 8. Qb3 {[%emt 0:02:08] LiveBook: 527 Games} e6 {[%emt 0:00:04]} 9. Bc4 {[%emt 0:02:56] A35: Symmetrical English: 2 Nc3 Nc6 3 Nf3} (9. Bb5 Bg7 10. O-O O-O 11. Bxc6 bxc6 12. Na4 Qd6 13. Re1 Rb8 14. Qd1 c5 15. Nxc5 Bb7 16. Bg5 Ba8 17. Qd2 Rb5 {0-1 (59) Caruana,F (2807)-Le,Q (2739) Saint Louis 2017}) 9... Na5 {[%emt 0:08:17]} 10. Bb5+ {[%emt 0:00:41]} Bd7 {[%emt 0:00:07]} 11. Qa4 {[%emt 0:00:26]} a6 {[%emt 0:00:27]} 12. Bxd7+ {[%emt 0:03:58]} Qxd7 {[%emt 0:00:56]} 13. Qxd7+ {[%emt 0:04:50]} Kxd7 {[%emt 0:00:11]} 14. Ne5+ {[%emt 0:02:47]} Ke8 {[%emt 0:06:19]} 15. Nxd5 {[%emt 0:02:44]} exd5 {[%emt 0:00:11] [#]} 16. b3 $146 {[%emt 0:19:08]} ({Predecessor:} 16. Bd2 Nc4 17. Nxc4 dxc4 {½-½ (43) Belous,V (2584)-Bocharov,D (2560) Vladivostok 2014}) 16... f6 {[%emt 0:05:01]} 17. Nd3 {[%emt 0:00:36]} Nc6 {[%emt 0:00:45]} 18. Be3 $15 {[%emt 0:00:52]} Nb4 {[%emt 0:27:02]} 1/2-1/2

[Event "Elitserien Allsvenskan 2017-18"]
[Site "Lund"]
[Date "2017.10.22"]
[Round "3"]
[White "Cederstam Barsk, Carl"]
[Black "Tuomainen, Felix"]
[Result "1-0"]
[ECO "E06"]
[WhiteElo "2319"]
[BlackElo "2195"]
[Annotator "NA"]
[PlyCount "117"]
[EventDate "2017.??.??"]
[EventCountry "SWE"]
[SourceTitle "playchess.com"]
[Source "ChessBase"]
[SourceQuality "1"]
[TimeControl "40/5400+30:1800+30"]

1. d4 {[%emt 0:02:21]} Nf6 {[%emt 0:00:13]} 2. c4 {[%emt 0:00:36]} e6 {[%emt 0:00:16]} 3. Nf3 {[%emt 0:00:22]} d5 {[%emt 0:00:53]} 4. g3 {[%emt 0:02:53]} Be7 {[%emt 0:01:48]} 5. Bg2 {[%emt 0:00:08]} O-O {[%emt 0:01:57]} 6. O-O {[%emt 0:00:09]} c6 {[%emt 0:01:43]} 7. Qc2 {[%emt 0:02:24]} Nbd7 {[%emt 0:00:26]} 8. Rd1 {[%emt 0:04:30]} a5 {[%emt 0:01:49]} 9. Be3 {[%emt 0:04:31]} b5 {[%emt 0:09:07]} 10. cxb5 {[%emt 0:05:38]} cxb5 {[%emt 0:00:07]} 11. Ne5 {[%emt 0:00:13]} Bb7 {[%emt 0:07:03]} 12. Nc6 {[%emt 0:09:20]} Bxc6 {[%emt 0:01:33]} 13. Qxc6 {[%emt 0:00:02]} Qb6 {[%emt 0:00:33]} 14. Qc2 {[%emt 0:02:08]} Rfc8 {[%emt 0:06:26]} 15. Qd3 {[%emt 0:00:23]} b4 {[%emt 0:03:11]} 16. Nd2 {[%emt 0:06:30]} Qa6 {[%emt 0:05:53]} 17. Qxa6 {[%emt 0:06:01]} Rxa6 {[%emt 0:00:10]} 18. Rac1 {[%emt 0:00:25]} Rac6 $11 {[%emt 0:00:53]} 19. Nb3 {[%emt 0:01:32]} Bd8 {[%emt 0:05:00]} 20. Bd2 {[%emt 0:15:46]} Kf8 {[%emt 0:14:47]} 21. e3 {[%emt 0:02:08]} Ke8 {[%emt 0:06:14]} 22. f3 {[%emt 0:04:04]} Rc2 {[%emt 0:01:56]} 23. Bf1 {[%emt 0:03:15]} Bb6 {[%emt 0:03:04]} 24. a3 {[%emt 0:10:44]} bxa3 {[%emt 0:03:05]} 25. bxa3 {[%emt 0:00:19]} Rxc1 {[%emt 0:01:29]} 26. Rxc1 {[%emt 0:00:42]} Rxc1 {[%emt 0:00:06]} 27. Bxc1 {[%emt 0:00:47]} a4 {[%emt 0:01:48]} 28. Na1 {[%emt 0:00:14]} e5 {[%emt 0:00:40]} 29. Nc2 {[%emt 0:02:05]} exd4 {[%emt 0:00:30]} 30. exd4 {[%emt 0:00:07]} Ne5 {[%emt 0:01:39]} 31. Bb5+ {[%emt 0:01:16]} Ke7 {[%emt 0:01:26]} 32. Kf2 {[%emt 0:00:22]} Ne8 {[%emt 0:01:16]} 33. Ke2 {[%emt 0:00:47]} Nd6 {[%emt 0:00:50]} 34. Bxa4 {[%emt 0:00:34]} Nec4 {[%emt 0:00:22]} 35. Kd3 {[%emt 0:05:49]} Na5 {[%emt 0:05:14]} 36. Kc3 {[%emt 0:04:27]} h6 37. g4 {[%emt 0:01:51]} Ke6 {[%emt 0:03:50]} 38. Nb4 {[%emt 0:00:25]} f5 {[%emt 0:01:26]} 39. h3 {[%emt 0:00:07]} fxg4 {[%emt 0:02:42]} 40. hxg4 {[%emt 0:00:30]} h5 {[%emt 0:32:19]} 41. Nd3 {[%emt 0:15:50]} hxg4 {[%emt 0:00:00]} 42. Nf4+ {[%emt 0:10:20]} Kf7 {[%emt 0:00:00]} 43. fxg4 {[%emt 0:00:21]} Ne4+ {[%emt 0:00:00]} 44. Kb4 {[%emt 0:00:03]} Nf2 {[%emt 0:00:00]} 45. g5 {[%emt 0:01:16]} Bd8 {[%emt 0:00:00]} 46. g6+ {[%emt 0:00:32]} Kf6 {[%emt 0:00:00]} 47. Bc2 {[%emt 0:00:01]} Ke7 {[%emt 0:00:00]} 48. Kc5 {[%emt 0:02:31]} Ne4+ {[%emt 0:00:00]} 49. Kxd5 {[%emt 0:00:02]} Nf6+ {[%emt 0:00:00]} 50. Kc5 {[%emt 0:00:28]} Nb7+ {[%emt 0:00:00]} 51. Kc6 {[%emt 0:00:23]} Na5+ {[%emt 0:00:00]} 52. Kb5 {[%emt 0:00:07]} Nb7 {[%emt 0:00:00]} 53. Bd2 {[%emt 0:00:50]} Kd7 {[%emt 0:00:00]} 54. Bf5+ {[%emt 0:02:46]} Kc7 {[%emt 0:00:00]} 55. Ne6+ {[%emt 0:02:01]} Kb8 {[%emt 0:00:00]} 56. Bf4+ {[%emt 0:00:27]} Ka7 {[%emt 0:00:00]} 57. Nxd8 {[%emt 0:01:42]} Nxd8 {[%emt 0:00:07]} 58. Bg5 {[%emt 0:00:55]} Nb7 {[%emt 0:10:35]} 59. Kc6 {[%emt 0:00:12]} 1-0

[Event "Elitserien Allsvenskan 2017-18"]
[Site "Lund"]
[Date "2017.10.22"]
[Round "3"]
[White "Helgason, Reynir"]
[Black "Cederberg, Karl-Olof"]
[Result "1-0"]
[ECO "A50"]
[WhiteElo "2294"]
[BlackElo "2161"]
[Annotator "NA"]
[PlyCount "131"]
[EventDate "2017.??.??"]
[EventCountry "SWE"]
[SourceTitle "playchess.com"]
[Source "ChessBase"]
[SourceQuality "1"]
[TimeControl "40/5400+30:1800+30"]

1. d4 {[%emt 0:00:00]} Nf6 {[%emt 0:00:00]} 2. c4 {[%emt 0:00:00]} Nc6 3. Nf3 e6 {[%emt 0:00:34]} 4. Bg5 {[%emt 0:05:45]} Bb4+ {[%emt 0:01:44]} 5. Nc3 {[%emt 0:03:38]} d6 {[%emt 0:00:14] E30: Nimzo-Indian: Leningrad Variation} (5... h6 6. Bh4 O-O 7. e3 Bxc3+ 8. bxc3 d6 9. Bd3 e5 10. Nd2 g5 11. Bg3 Re8 12. O-O Bg4 13. Qb1 Rb8 14. d5 Na5 15. f3 Bh5 16. Bf2 Kg7 {1-0 (59) Tan,Z (2496)-Arabidze,M (2379) Doha 2016}) 6. a3 {[%emt 0:05:32]} Bxc3+ {[%emt 0:00:09]} 7. bxc3 {[%emt 0:00:09]} h6 {[%emt 0:01:58]} 8. Bh4 {[%emt 0:00:53]} Qe7 {[%emt 0:01:27]} 9. e3 {[%emt 0:00:44]} e5 {[%emt 0:00:30]} 10. Qc2 {[%emt 0:09:12]} Bg4 $146 {[%emt 0:07:27]} ({Predecessor:} 10... g5 11. Bg3 g4 12. d5 gxf3 13. dxc6 fxg2 14. Bxg2 {0-1 (44) Woischke,N-Oorebeek,E (2353) IECC-37 vs CIF-2 2000}) 11. Be2 {[%emt 0:07:13]} O-O {[%emt 0:11:21]} 12. h3 {[%emt 0:05:25]} Bh5 {[%emt 0:02:01]} 13. g4 {[%emt 0:01:14]} Bg6 {[%emt 0:00:03]} 14. Qb2 {[%emt 0:01:02]} Be4 {[%emt 0:01:51]} 15. O-O {[%emt 0:00:57]} g5 {[%emt 0:01:32]} 16. Bg3 {[%emt 0:13:28]} Rab8 {[%emt 0:06:35]} 17. Rae1 {[%emt 0:01:55]} Bg6 {[%emt 0:04:07]} 18. Nd2 {[%emt 0:02:33]} Nd7 {[%emt 0:11:53]} 19. f4 {[%emt 0:17:19]} f5 {[%emt 0:04:54] [#]} (19... gxf4 $14 20. exf4 exd4) 20. c5 $16 {[%emt 0:01:53]} Qg7 {[%emt 0:07:18]} 21. cxd6 {[%emt 0:05:17]} cxd6 {[%emt 0:00:07]} 22. Kh2 {[%emt 0:03:58]} Nb6 {[%emt 0:05:39]} 23. fxg5 {[%emt 0:04:08]} hxg5 {[%emt 0:05:06]} 24. gxf5 Bxf5 {[%emt 0:00:06]} 25. Rxf5 {[%emt 0:02:00]} Rxf5 {[%emt 0:03:40]} 26. Rg1 {[%emt 0:00:15]} Rbf8 {[%emt 0:02:05]} 27. Rg2 {[%emt 0:00:21]} Kh8 {[%emt 0:02:39]} 28. Ne4 {[%emt 0:01:02]} Qe7 {[%emt 0:04:00]} 29. Nf2 {[%emt 0:04:00]} Nd5 {[%emt 0:00:29]} 30. e4 {[%emt 0:00:14]} Rxf2 31. Rxf2 Rxf2+ {[%emt 0:04:58]} 32. Bxf2 {[%emt 0:00:31]} Nf4 {[%emt 0:00:10]} 33. d5 {[%emt 0:00:00]} Qh7 {[%emt 0:09:25]} 34. Bf1 Nd8 35. Qb5 {[%emt 0:02:05]} Nf7 {[%emt 0:03:20]} 36. Qxb7 {[%emt 0:00:07]} Kg7 {[%emt 0:00:14]} 37. Qxa7 {[%emt 0:00:39]} Nxh3 {[%emt 0:00:24]} 38. Bxh3 {[%emt 0:00:17]} g4 {[%emt 0:00:04]} 39. Qe3 {[%emt 0:00:28]} gxh3 {[%emt 0:00:24]} 40. Qxh3 {[%emt 0:01:30]} Qxh3+ {[%emt 0:30:11]} 41. Kxh3 {[%emt 0:30:09]} Ng5+ {[%emt 0:00:01]} 42. Kg2 {[%emt 0:01:10]} Nxe4 {[%emt 0:00:00]} 43. Be1 {[%emt 0:00:00]} Kf6 {[%emt 0:00:00]} 44. c4 {[%emt 0:00:00]} Ke7 {[%emt 0:00:00]} 45. Bb4 {[%emt 0:00:00]} Nf6 {[%emt 0:00:00]} 46. a4 {[%emt 0:00:00]} Nd7 {[%emt 0:00:00]} 47. a5 {[%emt 0:00:00]} Nb8 {[%emt 0:00:00]} 48. Kf3 {[%emt 0:00:00]} Na6 {[%emt 0:00:00]} 49. Ba3 {[%emt 0:00:00]} Kd7 {[%emt 0:00:00]} 50. Ke4 {[%emt 0:00:00]} Kc7 {[%emt 0:00:00]} 51. Kd3 {[%emt 0:00:00]} Nb8 {[%emt 0:00:00]} 52. Kc3 {[%emt 0:00:00]} Nd7 {[%emt 0:00:00]} 53. Kb4 {[%emt 0:00:00]} Nc5 {[%emt 0:03:46]} 54. Kb5 {[%emt 0:00:00]} Ne4 {[%emt 0:03:20]} 55. a6 {[%emt 0:00:00]} Nc3+ {[%emt 0:00:07]} 56. Ka5 {[%emt 0:00:00]} Ne4 {[%emt 0:00:04]} 57. Bb4 {[%emt 0:00:00]} Kb8 {[%emt 0:01:13]} 58. Kb6 {[%emt 0:00:00]} Ka8 {[%emt 0:00:04]} 59. a7 {[%emt 0:01:22]} Nf6 {[%emt 0:01:49]} 60. Bxd6 {[%emt 0:00:07]} e4 {[%emt 0:00:05]} 61. Bg3 {[%emt 0:03:09]} e3 {[%emt 0:01:00]} 62. d6 {[%emt 0:00:34]} e2 {[%emt 0:00:17]} 63. Kc6 {[%emt 0:00:34]} Kxa7 {[%emt 0:00:54]} 64. d7 {[%emt 0:00:41]} Nxd7 {[%emt 0:00:05]} 65. Kxd7 {[%emt 0:00:06]} Kb6 {[%emt 0:00:01]} 66. Kd6 {[%emt 0:00:12]} 1-0

[Event "Elitserien Allsvenskan 2017-18"]
[Site "Lund"]
[Date "2017.10.22"]
[Round "3"]
[White "Henriksson, Johan"]
[Black "Kucuksari, Kaan"]
[Result "1/2-1/2"]
[ECO "E01"]
[WhiteElo "2292"]
[BlackElo "2315"]
[Annotator "NA"]
[PlyCount "119"]
[EventDate "2017.??.??"]
[EventCountry "SWE"]
[SourceTitle "playchess.com"]
[Source "ChessBase"]
[SourceQuality "1"]
[TimeControl "40/5400+30:1800+30"]

1. d4 {[%emt 0:00:00]} Nf6 {[%emt 0:02:08]} 2. c4 {[%emt 0:00:00]} e6 {[%emt 0:00:10]} 3. g3 {[%emt 0:00:00]} d5 {[%emt 0:00:45]} 4. Bg2 {[%emt 0:00:23]} c6 {[%emt 0:00:31]} 5. Nf3 {[%emt 0:00:08]} Nbd7 {[%emt 0:00:07]} 6. O-O {[%emt 0:01:43]} Be7 {[%emt 0:00:11]} 7. Nc3 {[%emt 0:01:19]} O-O {[%emt 0:03:28]} 8. Nd2 {[%emt 0:08:06]} c5 {[%emt 0:09:54]} 9. dxc5 {[%emt 0:09:28]} d4 {[%emt 0:01:24]} 10. Na4 {[%emt 0:17:42]} Nxc5 $16 {[%emt 0:03:39]} 11. Nf3 {[%emt 0:07:50]} d3 {[%emt 0:15:07]} 12. exd3 {[%emt 0:14:48]} Nxd3 {[%emt 0:03:25]} 13. Be3 {[%emt 0:05:20]} e5 {[%emt 0:06:12]} 14. Qb3 {[%emt 0:04:41]} Bg4 {[%emt 0:07:09]} 15. Ne1 {[%emt 0:05:57]} Be2 {[%emt 0:08:08]} 16. Nxd3 {[%emt 0:02:49]} Qxd3 {[%emt 0:00:36]} 17. Rfc1 {[%emt 0:03:28]} Qxb3 {[%emt 0:09:09]} 18. axb3 {[%emt 0:00:02]} e4 {[%emt 0:00:19]} 19. Bd4 {[%emt 0:02:56]} Bd3 {[%emt 0:01:59]} 20. Nc3 {[%emt 0:02:11]} a6 {[%emt 0:01:40]} 21. Re1 {[%emt 0:01:01]} Rfe8 {[%emt 0:05:43]} 22. Bxe4 {[%emt 0:05:48]} Nxe4 {[%emt 0:01:33]} 23. Nxe4 {[%emt 0:00:02]} Bb4 {[%emt 0:00:01]} 24. Nc3 {[%emt 0:01:24]} Bc2 {[%emt 0:05:14]} 25. Rxe8+ Rxe8 {[%emt 0:00:07]} 26. Nd5 {[%emt 0:00:55]} Bf8 {[%emt 0:01:19]} 27. b4 {[%emt 0:00:45]} Bb3 {[%emt 0:04:14]} 28. Rc1 {[%emt 0:01:47]} Re4 {[%emt 0:02:31]} 29. Bc5 {[%emt 0:00:52]} Rxc4 {[%emt 0:03:25]} 30. Rxc4 {[%emt 0:00:29]} Bxc4 {[%emt 0:00:05]} 31. Ne7+ {[%emt 0:00:39]} Bxe7 {[%emt 0:00:59]} 32. Bxe7 {[%emt 0:00:04]} f6 {[%emt 0:00:09]} 33. f4 {[%emt 0:00:16]} Kf7 {[%emt 0:00:06]} 34. Bc5 {[%emt 0:00:04]} Ke6 {[%emt 0:00:09]} 35. Bd4 {[%emt 0:00:19]} Kd5 {[%emt 0:00:08]} 36. Bc3 {[%emt 0:00:04]} Ke4 {[%emt 0:00:12]} 37. Kf2 {[%emt 0:00:04]} Bb5 {[%emt 0:02:37]} 38. Bd2 {[%emt 0:00:11]} Kd3 {[%emt 0:01:13]} 39. Bc3 {[%emt 0:00:04]} h5 {[%emt 0:00:06]} 40. h4 {[%emt 0:00:43]} Bc6 {[%emt 0:30:36]} 41. Be1 {[%emt 0:30:40]} Bh1 {[%emt 0:03:28]} 42. Bc3 {[%emt 0:00:05]} Be4 {[%emt 0:00:00]} 43. Be1 {[%emt 0:00:00]} Bf5 {[%emt 0:00:00]} 44. Bc3 {[%emt 0:00:00]} b6 {[%emt 0:00:00]} 45. Be1 {[%emt 0:00:00]} Kc4 {[%emt 0:00:00]} 46. Ke3 {[%emt 0:00:00]} Kb5 {[%emt 0:00:00]} 47. Kd4 {[%emt 0:00:00]} Be6 {[%emt 0:00:00]} 48. Kc3 {[%emt 0:00:00]} Kc6 {[%emt 0:00:00]} 49. Kd4 {[%emt 0:00:00]} Kb5 {[%emt 0:00:00]} 50. Kc3 {[%emt 0:00:00]} a5 {[%emt 0:00:00]} 51. bxa5 {[%emt 0:00:00]} bxa5 {[%emt 0:00:00]} 52. Kd4 {[%emt 0:00:00]} a4 {[%emt 0:00:00]} 53. Bc3 {[%emt 0:00:00]} Bb3 {[%emt 0:00:00]} 54. Bd2 {[%emt 0:00:00]} Kc6 {[%emt 0:00:00]} 55. Bb4 {[%emt 0:00:00]} Kd7 {[%emt 0:00:00]} 56. Bf8 {[%emt 0:00:00]} Bc2 {[%emt 0:00:00]} 57. Bxg7 {[%emt 0:00:00]} Ke7 {[%emt 0:00:00]} 58. f5 {[%emt 0:00:00]} Bxf5 {[%emt 0:00:00]} 59. Bh6 {[%emt 0:00:00]} Ke6 {[%emt 0:00:00]} 60. Bf4 {[%emt 0:00:00] Ke5+ Ke4+} 1/2-1/2

[Event "Elitserien Allsvenskan 2017-18"]
[Site "Lund"]
[Date "2017.10.22"]
[Round "3"]
[White "Ong, Kezli"]
[Black "Agrest, Inna"]
[Result "1-0"]
[ECO "C50"]
[WhiteElo "2291"]
[BlackElo "2271"]
[Annotator "NA"]
[PlyCount "63"]
[EventDate "2017.??.??"]
[EventCountry "SWE"]
[SourceTitle "playchess.com"]
[Source "ChessBase"]
[SourceQuality "1"]
[TimeControl "40/5400+30:1800+30"]

1. e4 {[%emt 0:00:48]} e5 {[%emt 0:00:53]} 2. Nf3 {[%emt 0:00:26]} Nc6 {[%emt 0:00:06]} 3. Bc4 {[%emt 0:01:20]} Nf6 {[%emt 0:00:06]} 4. d3 {[%emt 0:00:11]} Bc5 {[%emt 0:00:50]} 5. c3 {[%emt 0:01:34]} a6 {[%emt 0:00:25]} 6. Bb3 {[%emt 0:00:59]} Ba7 {[%emt 0:00:20]} 7. O-O {[%emt 0:00:13]} d6 {[%emt 0:01:41]} 8. Re1 {[%emt 0:01:15]} O-O {[%emt 0:06:04]} 9. h3 $11 {[%emt 0:03:21]} Ne7 {[%emt 0:06:03]} 10. Nbd2 {[%emt 0:01:33]} Ng6 {[%emt 0:02:41]} 11. Nf1 {[%emt 0:00:19]} c6 {[%emt 0:02:04]} 12. Ng3 {[%emt 0:17:49]} h6 {[%emt 0:22:10]} 13. d4 {[%emt 0:08:16]} b5 {[%emt 0:22:50]} 14. Be3 {[%emt 0:06:43]} c5 {[%emt 0:02:00]} 15. Qd2 {[%emt 0:06:48]} Bb6 {[%emt 0:11:20]} 16. Bxh6 {[%emt 0:23:25]} c4 {[%emt 0:06:59]} 17. Bc2 {[%emt 0:00:53]} gxh6 {[%emt 0:00:50]} 18. Qxh6 {[%emt 0:00:08]} Re8 {[%emt 0:04:41]} 19. Nf5 {[%emt 0:08:44]} Bxf5 {[%emt 0:00:21]} 20. exf5 {[%emt 0:00:07]} Nf4 {[%emt 0:04:49]} 21. Rad1 {[%emt 0:10:32]} Nd3 {[%emt 0:02:28]} 22. Bxd3 {[%emt 0:01:23]} cxd3 {[%emt 0:00:02]} 23. Nxe5 {[%emt 0:02:01]} dxe5 {[%emt 0:01:33]} 24. Rxd3 {[%emt 0:00:18]} Nh5 {[%emt 0:00:36]} 25. Ree3 {[%emt 0:00:41]} Nf4 {[%emt 0:00:34]} 26. f6 {[%emt 0:02:12]} Qxf6 {[%emt 0:00:29]} 27. Qxf6 {[%emt 0:00:18]} Nxd3 {[%emt 0:00:10]} 28. Rxd3 {[%emt 0:00:42]} Bd8 {[%emt 0:00:49]} 29. Rg3+ {[%emt 0:00:54]} Kf8 {[%emt 0:00:06]} 30. Qd6+ {[%emt 0:00:33]} Re7 {[%emt 0:00:14]} 31. Qh6+ {[%emt 0:00:07]} Ke8 {[%emt 0:00:05]} 32. Qc6+ {[%emt 0:00:05]} 1-0

[Event "Elitserien Allsvenskan 2017-18"]
[Site "Lund"]
[Date "2017.10.22"]
[Round "3"]
[White "Andersson, Fredrik"]
[Black "Mauritsson, Sebastian"]
[Result "1/2-1/2"]
[ECO "E94"]
[WhiteElo "2286"]
[BlackElo "2331"]
[Annotator "NA"]
[PlyCount "46"]
[EventDate "2017.??.??"]
[EventCountry "SWE"]
[SourceTitle "playchess.com"]
[Source "ChessBase"]
[SourceQuality "1"]
[TimeControl "40/5400+30:1800+30"]

1. d4 Nf6 {[%emt 0:00:21]} 2. c4 {[%emt 0:00:00]} g6 {[%emt 0:00:54]} 3. Nc3 {[%emt 0:00:00]} Bg7 {[%emt 0:00:13]} 4. e4 {[%emt 0:00:00]} d6 {[%emt 0:00:31]} 5. Nf3 {[%emt 0:00:00]} O-O $14 {[%emt 0:00:10]} 6. Be2 {[%emt 0:00:06]} e5 {[%emt 0:00:33]} 7. O-O exd4 {[%emt 0:09:17]} 8. Nxd4 {[%emt 0:00:45]} Re8 {[%emt 0:00:00]} 9. f3 {[%emt 0:02:10]} Nc6 {[%emt 0:00:00]} 10. Be3 {[%emt 0:03:45]} Nh5 11. Nxc6 {[%emt 0:17:02]} bxc6 {[%emt 0:00:23]} 12. Qd2 {[%emt 0:18:50]} c5 {[%emt 0:17:38]} 13. Rad1 {[%emt 0:08:13]} Bb7 14. g4 {[%emt 0:00:27]} Nf6 {[%emt 0:02:08]} 15. Bg5 {[%emt 0:04:09]} Qc8 {[%emt 0:04:38]} 16. Nd5 {[%emt 0:05:50]} Bxd5 {[%emt 0:10:24]} 17. cxd5 {[%emt 0:04:07]} Qb7 18. Rb1 {[%emt 0:02:43]} Nd7 {[%emt 0:13:23]} 19. Kg2 Rab8 20. b3 {[%emt 0:05:59]} Rf8 {[%emt 0:09:25]} 21. Be7 {[%emt 0:00:59]} Rfe8 {[%emt 0:00:12]} 22. Bg5 {[%emt 0:00:05]} Rf8 {[%emt 0:00:07]} 23. Be7 {[%emt 0:00:06]} Rfe8 {[%emt 0:00:06]} 1/2-1/2